Cogmind - Beta 14 @@@ ROGUE MODE // 2025.04.18 @ 19:53:55 Player: jumpy Result: Destroyed by Y-45 Defender with Heavy Assault Rifle Performance ------------- Evolutions (2) 1000 Regions Visited (5) 1000 Robots Destroyed (27) 135 Value Destroyed (541) 541 Prototype IDs (23) 460 Alien Tech Used (0) 0 Bonus (261) 261 TOTAL SCORE: 3397 Bonus ------- Aligned with FarCom 300 Friendly Fire -39 Cogmind --------- Core Integrity 0/550 Matter 300/300 Energy 100/100 System Corruption 0% Temperature Cool (9) Movement Core (50) Location -8/Materials Parts ------- > --- POWER (1) -------- (None) > --- PROPULSION (4) --- (None) > --- UTILITY (4) ------ (None) > --- WEAPON (2) ------- (None) > --- INVENTORY (5) ---- Wheel Wheel Wheel Airjet Peak State ------------ > --- POWER ------------ (None) > --- PROPULSION ------- Aluminum Leg Aluminum Leg Carbon-fiber Leg Carbon-fiber Leg > --- UTILITY ---------- Medium Storage Unit Improved Light Armor Plating > --- WEAPON ----------- Improved Light Cannon Flak Cannon > --- INVENTORY -------- Aluminum Leg Wheel Wheel Wheel Airjet Light Assault Rifle [Rating: 17] Favorites ----------- Power Ion Engine Engine Ion Engine Propulsion Light Treads Treads Light Treads Leg Carbon-fiber Leg Utility Small Storage Unit Device Seismic Detector Storage Small Storage Unit Protection Improved Light Armor Plating Weapon Assault Rifle Energy Gun Small Laser Energy Cannon Light EM Pulse Cannon Ballistic Gun Assault Rifle Ballistic Cannon Flak Cannon Launcher Rocket Launcher Build | -11 -10 -10 -10 -9 -8 ------- Run | Yrd Mat Min Exi Min Mat Slots Evolved 4 | . . . . . 4 Power . | . . . . . . Propulsion 2 | . . . . . 2 Utility 2 | . . . . . 2 Weapon . | . . . . . . Parts Attached 21 | 7 . 2 . 4 8 Power 2 | 1 . . . 1 . Engine 2 | 1 . . . 1 . Core . | . . . . . . Reactor . | . . . . . . Propulsion 8 | 2 . 1 . 2 3 Treads 3 | 2 . 1 . . . Leg 5 | . . . . 2 3 Wheel . | . . . . . . Hover . | . . . . . . Flight . | . . . . . . Utility 4 | 2 . . . . 2 Device 1 | 1 . . . . . Storage 2 | 1 . . . . 1 Processor . | . . . . . . Hackware . | . . . . . . Protection 1 | . . . . . 1 Artifact . | . . . . . . Weapon 7 | 2 . 1 . 1 3 Energy Gun 1 | 1 . . . . . Energy Cannon 1 | . . . . . 1 Ballistic Gun 2 | 1 . . . . 1 Ballistic Cannon 2 | . . . . 1 1 Launcher 1 | . . 1 . . . Special Weapon . | . . . . . . Impact Weapon . | . . . . . . Slashing Weapon . | . . . . . . Piercing Weapon . | . . . . . . Special Melee Weapon . | . . . . . . Unidentified Prototypes . | . . . . . . Parts Lost 17 | . 1 1 . 5 10 Power 2 | . . . . 2 . Propulsion 7 | . . 1 . 1 5 Utility 1 | . . . . . 1 Weapon 7 | . 1 . . 2 4 Highest Loss Streak 10 | . 1 1 . 4 10 To Critical Strikes . | . . . . . . Average Slot Usage (%) 79 | . 99 96 85 65 51 Engine 9 | . 14 14 14 3 . Treads 13 | . 28 26 14 3 . Leg 7 | . . . . 19 26 Device 10 | . 14 14 14 8 . Storage 12 | . 14 14 14 14 9 Ballistic Gun 9 | . 14 14 14 2 1 Ballistic Cannon 4 | . . . . 10 14 Launcher 8 | . . 12 14 2 . Peak Build Rating 17 | 7 7 9 9 13 17 Average Rating 8 | 5 6 8 8 10 11 On Entrance 6 | . 7 6 8 9 10 Naked Turns 4 | . . . . . 4 Heaviest Build 23 | 14 14 17 17 17 23 Greatest Support 50 | 40 40 40 20 30 50 Greatest Overweight (x) 3 | . . . . 3 . Average Overweight (x) . | . . . . . . Largest Inventory Capacity 10 | 8 8 8 8 8 10 Average Capacity 8 | 7 8 8 8 8 9 Most Carried 8 | 4 4 6 8 8 7 Average Carried 5 | 3 4 5 7 5 4 Final Capacity 8 | 8 8 8 8 8 5 Final Carried 8 | 4 4 6 8 5 4 Class Distribution -------------------- 100% | Mutant Dominant Class ---------------- Mutant | -10/Materials Mutant | -10/Mines Mutant | -10/Exiles Mutant | -9/Mines Mutant | -8/Materials Resources | -11 -10 -10 -10 -9 -8 ----------- Run | Yrd Mat Min Exi Min Mat Matter Collected 737 | 329 . 141 . 97 170 Remotely . | . . . . . . Salvage Created 550 | 165 19 87 . 70 209 Parts 56 | 30 . 5 . 8 13 Haulers Intercepted . | . . . . . . Recyclers Shooed 1 | 1 . . . . . Parts Field Recycled . | . . . . . . Retrieved Matter . | . . . . . . Parts Self-Destructed . | . . . . . . Prevented . | . . . . . . Kills | -11 -10 -10 -10 -9 -8 ------- Run | Yrd Mat Min Exi Min Mat Combat Hostiles Destroyed 15 | . 1 5 . 4 5 Guns 4 | . 1 2 . . 1 Cannons 8 | . . . . 4 4 AOE 3 | . . 3 . . . Classes Destroyed 5 | 2 1 1 . . 1 Worker 2 | 1 . 1 . . . Builder 1 | . . . . . 1 Tunneler 9 | 9 . . . . . Swarmer 5 | . . 3 . 2 . Grunt 10 | . 1 2 . 2 5 Best Kill Streak 4 | 3 1 4 . 4 2 Combat Bots Only 4 | . 1 3 . 4 2 Max Kills in Single Turn 2 | 2 1 2 . 1 1 Gunslinging . | . . . . . . Exploded 2 | . . 2 . . . Melee . | . . . . . . Uniques/NPCs Destroyed . | . . . . . . Combat | -11 -10 -10 -10 -9 -8 -------- Run | Yrd Mat Min Exi Min Mat Hostile Shots Fired 280 | . 24 16 . 92 148 Missed 81 | . 6 3 . 28 44 Damage Taken 2849 | . 437 188 . 541 1683 Core 747 | . 72 37 . 79 559 Absorbed by Shields . | . . . . . . Core Remaining (%) 62 | 100 . . . 24 . Volleys Fired 84 | 23 13 12 . 12 24 Largest 2 | 2 2 1 . 1 2 Hottest 83 | 60 60 33 . 44 83 Shots Fired 135 | 45 25 12 . 12 41 Gun 92 | 45 25 6 . . 16 Cannon 37 | . . . . 12 25 Launcher 6 | . . 6 . . . Special . | . . . . . . Kinetic 93 | 23 13 6 . 12 39 Thermal 34 | 22 12 . . . . Explosive 6 | . . 6 . . . Electromagnetic 2 | . . . . . 2 Robot Hit Streak 8 | 4 8 3 . 2 5 Robot Miss Streak 14 | 3 2 4 . 14 5 Penetration Max . | . . . . . . Secondary Targets . | . . . . . . Shots Hit Robots 88 | 22 19 6 . 11 30 Core Hits 55 | 10 3 9 . 10 23 Critical Kills . | . . . . . . Critical Parts Destroyed . | . . . . . . Critical Strikes . | . . . . . . Melee Attacks . | . . . . . . Impact . | . . . . . . Slashing . | . . . . . . Piercing . | . . . . . . Sneak Attacks . | . . . . . . Combat Hostiles . | . . . . . . Follow-up Attacks . | . . . . . . Damage Inflicted 1593 | 264 216 477 . 144 492 Guns 636 | 264 216 49 . . 107 Cannons 503 | . . . . 144 359 Explosions 420 | . . 420 . . . Melee . | . . . . . . Ramming 34 | . . 8 . . 26 Kinetic 862 | 98 128 49 . 144 443 Thermal 254 | 166 88 . . . . Explosive 420 | . . 420 . . . Electromagnetic 23 | . . . . . 23 Impact . | . . . . . . Slashing . | . . . . . . Piercing . | . . . . . . Highest Corruption . | . . . . . . Average Corruption . | . . . . . . Corruption Purged . | . . . . . . Corruption Blocked . | . . . . . . Overload Shots . | . . . . . . Overflow Damage 58 | . . 58 . . . Projectiles . | . . . . . . Explosions 58 | . . 58 . . . Melee . | . . . . . . Knockbacks 6 | . . . . 3 3 Impact . | . . . . . . Kinetic 5 | . . . . 3 2 Secondary 1 | . . . . . 1 Self-Inflicted Damage 71 | . . 66 . . 5 Shots 2 | . . 2 . . . Rammed 6 | . . 3 . . 3 Targets Rammed 15 | . . 3 . . 12 Kicked 9 | . . . . . 9 Crushed . | . . . . . . Highest Temperature 125 | . 125 5 . 3 90 Average Temperature 47 | . 60 3 . 3 41 Received Heat Transfer 1197 | . 159 27 . 39 972 Siege Activations . | . . . . . . Robots Corrupted . | . . . . . . Combat Hostiles . | . . . . . . Parts Fried . | . . . . . . Impact Corruptions . | . . . . . . Robots Melted . | . . . . . . Combat Hostiles . | . . . . . . Parts Melted . | . . . . . . Heat Transferred 575 | 375 200 . . . . Parts Sabotaged . | . . . . . . Parts Stolen . | . . . . . . Parts Stripped . | . . . . . . Power Chain Reactions . | . . . . . . Alert | -11 -10 -10 -10 -9 -8 ------- Run | Yrd Mat Min Exi Min Mat Peak Influence 208 | 50 25 114 . 110 208 Initial 42 | . . 9 . . 42 Average 40 | 15 15 50 . 76 57 Maximum Alert Level 1 | . . . . . 1 Low Security (%) 99 | 100 100 100 . 100 99 Level 1 . | . . . . . . Level 2 . | . . . . . . Level 3 . | . . . . . . Level 4 . | . . . . . . Level 5 . | . . . . . . High Security . | . . . . . . Max Security . | . . . . . . Squads Dispatched 5 | . 1 1 . . 3 Investigation 2 | . . 1 . . 1 Extermination . | . . . . . . Reinforcement 3 | . 1 . . . 2 Assault . | . . . . . . Garrison . | . . . . . . Intercept . | . . . . . . Searches Triggered . | . . . . . . Construction Impeded . | . . . . . . Haulers Reinforced . | . . . . . . Active Scanning Responses . | . . . . . . Cargo Convoy Interrupts . | . . . . . . Stealth | -11 -10 -10 -10 -9 -8 --------- Run | Yrd Mat Min Exi Min Mat Distress Signals 3 | . . . . . 3 Communications Jammed . | . . . . . . Distress Signals . | . . . . . . Times Spotted 51 | . 5 9 . 10 27 Peak Tracking Total 13 | . 2 7 . 6 13 Tactical Retreats 4 | . . . . 2 2 Traps | -11 -10 -10 -10 -9 -8 ------- Run | Yrd Mat Min Exi Min Mat Traps Triggered . | . . . . . . Indirectly . | . . . . . . Trap Hack Attempts . | . . . . . . Triggered . | . . . . . . Disarmed . | . . . . . . Reprogrammed . | . . . . . . Reused . | . . . . . . Traps Extracted . | . . . . . . Installed . | . . . . . . Triggered . | . . . . . . Machines | -11 -10 -10 -10 -9 -8 ---------- Run | Yrd Mat Min Exi Min Mat Machines Disabled . | . . . . . . Max in Single Turn . | . . . . . . Machines Repaired . | . . . . . . Machines Dismantled . | . . . . . . Machines Sabotaged . | . . . . . . Overloaded Fab Kills . | . . . . . . Hacking | -11 -10 -10 -10 -9 -8 --------- Run | Yrd Mat Min Exi Min Mat Machines Accessed 7 | . . 1 4 1 1 Terminals 1 | . . . . . 1 Fabricators . | . . . . . . Repair Stations . | . . . . . . Recycling Units . | . . . . . . Scanalyzers . | . . . . . . Garrison Access . | . . . . . . Total Hacks 30 | . . 1 27 1 1 Successful 29 | . . 1 27 1 . Failed 1 | . . . . . 1 Catastrophic 1 | . . . . . 1 Database Lockouts . | . . . . . . Manual 3 | . . . 1 . 2 Terminals 1 | . . . . . 1 Fabricators . | . . . . . . Repair Stations . | . . . . . . Recycling Units . | . . . . . . Scanalyzers . | . . . . . . Garrison Access . | . . . . . . Terminal Hacks 29 | . . 1 27 1 . Record 26 | . . . 26 . . Open Door 2 | . . 1 . 1 . Derelict Proto ID Bank 1 | . . . 1 . . Fabricator Hacks . | . . . . . . Repair Station Hacks . | . . . . . . Recycling Unit Hacks . | . . . . . . Scanalyzer . | . . . . . . Garrison Access Hacks . | . . . . . . Unauthorized Hacks . | . . . . . . Terminals . | . . . . . . Fabricators . | . . . . . . Repair Stations . | . . . . . . Recycling Units . | . . . . . . Scanalyzers . | . . . . . . Garrison Access . | . . . . . . Data Cores Recovered . | . . . . . . Used . | . . . . . . Hacking Detections 1 | . . . . . 1 Full Trace Events 1 | . . . . . 1 Feedback Events . | . . . . . . Feedback Blocked . | . . . . . . Robot Schematics Acquired . | . . . . . . Robots Built . | . . . . . . Authchips . | . . . . . . Time . | . . . . . . Total Robot Build Rating . | . . . . . . Part Schematics Acquired . | . . . . . . Parts Built . | . . . . . . Authchips . | . . . . . . Time . | . . . . . . Total Part Build Rating . | . . . . . . Parts Repaired . | . . . . . . Time . | . . . . . . Parts Recycled . | . . . . . . Recycled Matter . | . . . . . . Retrieved Matter . | . . . . . . Retrieved Components . | . . . . . . Parts Scanalyzed . | . . . . . . Part Schematics Acquired . | . . . . . . Parts Damaged . | . . . . . . Bothacking | -11 -10 -10 -10 -9 -8 ------------ Run | Yrd Mat Min Exi Min Mat Used RIF Installer . | . . . . . . Robots Hacked . | . . . . . . Non-combat . | . . . . . . Combat . | . . . . . . Robot Hacks Applied . | . . . . . . Relay Couplers Released . | . . . . . . Fabnet Peak Effective % . | . . . . . . Robots Rewired . | . . . . . . Allies Hacked . | . . . . . . Hacks Repelled . | . . . . . . Allies | -11 -10 -10 -10 -9 -8 -------- Run | Yrd Mat Min Exi Min Mat Total Allies 4 | . . 4 . . . Largest Group 3 | . . 3 1 . . Highest-Rated Group 40 | . . 40 31 . . Highest-Rated Ally 31 | . . 31 31 . . Total Orders . | . . . . . . Ally Attacks 10 | . . 10 . . . Total Damage 106 | . . 106 . . . Kills 1 | . . 1 . . . Allies Corrupted . | . . . . . . Allies Melted . | . . . . . . Intel | -11 -10 -10 -10 -9 -8 ------- Run | Yrd Mat Min Exi Min Mat Robot Analysis Total . | . . . . . . Derelict Logs Recovered 4 | . . 2 . 2 . Drone Launches . | . . . . . . Drone Recoveries . | . . . . . . Exploration | -11 -10 -10 -10 -9 -8 ------------- Run | Yrd Mat Min Exi Min Mat Turns Passed 2848 | 718 149 444 832 255 450 Spaces Moved 1542 | 292 69 251 515 167 248 Core 4 | 3 . . . 1 . Treads 1161 | 289 69 251 515 37 . Legs 377 | . . . . 129 248 Wheels . | . . . . . . Hover . | . . . . . . Flight . | . . . . . . Fastest Speed 50 | 50 160 160 160 120 120 Average Speed 150 | 158 160 160 160 129 120 Slowest Speed 200 | 160 160 160 160 200 120 Overloaded Moves . | . . . . . . Propulsion Burnouts . | . . . . . . Robots Hopped . | . . . . . . Cave-ins Triggered . | . . . . . . Time Travels 1 | . . . . 1 . Exploration Rate (%) 41 | 6 20 74 90 43 16 Regions Visited 5 Branch Regions 3 Pre-discovered Areas 1 | . . 1 . . . Known Exits Taken . | . . . . . . Unknown Exits Taken 5 | 1 1 1 1 1 . Scrap Searched 2 | . . 1 . 1 . Spaces Dug . | . . . . . . Terrain Destroyed 62 | . . 61 . . 1 Melee . | . . . . . . Projectile 1 | . . . . . 1 AOE 61 | . . 61 . . . Terrain Rammed . | . . . . . . Walls Destroyed . | . . . . . . Machines Disabled . | . . . . . . Actions | -11 -10 -10 -10 -9 -8 --------- Run | Yrd Mat Min Exi Min Mat Total 1937 | 498 83 280 523 194 359 Wait 262 | 173 2 9 7 9 62 Move 1537 | 291 68 250 514 166 248 Hop . | . . . . . . Pick Up 13 | 4 . 3 2 1 3 Fast Attach 13 | 7 . . . 2 4 Attach 7 | . . 1 . 2 4 Detach . | . . . . . . Swap 1 | . . 1 . . . Drop 5 | . . 1 . 2 2 Fire 84 | 23 13 12 . 12 24 Melee . | . . . . . . Ram 3 | . . . . . 3 Kick 9 | . . . . . 9 Crush 3 | . . 3 . . . Escape Stasis . | . . . . . . Rewire . | . . . . . . Trap . | . . . . . . Miscellaneous . | . . . . . . Route ------- -11/Scrapyard -10/Materials -10/Mines -10/Exiles -9/Mines -8/Materials History --------- Turn | Location | Event 9 | -11/Scrapyard | Discovered new exit (range 13) 719 | -11/Scrapyard | Entered Materials 720 | -10/Materials | Build established: Mutant 852 | -10/Materials | Discovered new exit (range 10) 868 | -10/Materials | Entered Mines 875 | -10/Mines | Received a Rocket Launcher from a helpful Derelict 931 | -10/Mines | Assembled infested the area 956 | -10/Mines | Assisted by bots powering up and referring to "LRC-V3" 1005 | -10/Mines | Lost 3 allies 1021 | -10/Mines | Learned Materials terminal intel 1024 | -10/Mines | Met a Derelict shopkeep closing up shop 1177 | -10/Mines | Learned location of Storage (-9) 1247 | -10/Mines | Received a Mining Laser from a helpful Derelict 1297 | -10/Mines | Deemed a non-threat by the Exiles lab entrance 1298 | -10/Mines | Discovered new exit (range 5) 1312 | -10/Mines | Entered Exiles 1312 | -10/Exiles | Accompanied by 1 ally 1366 | -10/Exiles | Met 8R-AWN 1390 | -10/Exiles | Met EX-HEX 1453 | -10/Exiles | Met EX-DEC 1518 | -10/Exiles | Visited The Gauntlet 1755 | -10/Exiles | Met EX-BIN 1798 | -10/Exiles | Aligned with FarCom system 1800 | -10/Exiles | Given EX-Vault access code 1885 | -10/Exiles | Opened EX-Vault 1958 | -10/Exiles | Found Chronowheel 1993 | -10/Exiles | Warned to stay clear of 0b10 Research branches 2125 | -10/Exiles | Discovered new exit (range 14) 2144 | -10/Exiles | Left Exiles lab with Chronowheel 2144 | -10/Exiles | Entered Mines 2162 | -9/Mines | Met a Derelict bent on vengeance 2176 | -9/Mines | Learned Materials stockpile data 2187 | -9/Mines | Core integrity fell below 50% 2193 | -9/Mines | Found the Drone Emporium 2244 | -9/Mines | Lost 4 parts (1p1n2w) 2303 | -9/Mines | Activated Chronowheel 2303 | -9/Mines | Spacetime reconverged on an earlier point 2326 | -9/Mines | Learned Materials stockpile data 2382 | -9/Mines | Discovered new exit (range 13) 2399 | -9/Mines | Entered Materials 2399 | -8/Materials | Evolved 4 slots: Propulsion x2, Utility x2 2401 | -8/Materials | Loaded intel: 12 terminal locations 2839 | -8/Materials | Core integrity fell below 50% 2848 | -8/Materials | Core integrity fell below 20% 2849 | -8/Materials | Destroyed by Y-45 Defender with Heavy Assault Rifle Last Messages --------------- 02831_ Acquired 17 matter. 02831_ G-47 Trooper destroyed. 02832_ Kicked B-36 Bruiser. 02832_ Critical hit (Burn: +37). 02832_ Aluminum Leg destroyed. 02834_ Kicked G-47 Trooper. 02836_ Critical hit (Burn: +37). 02837_ Kicked G-47 Trooper. 02837_ G-47 Trooper suffers critical hit (Burn). 02838_ Critical hit (Burn: +37). 02838_ Kicked G-47 Trooper. 02842_ Critical hit (Burn: +37). 02842_ Knocked back. 02843_ Kicked M-13 Machinist. 02843_ M-13 Machinist destroyed. 02844_ Aluminum Leg destroyed. 02845_ Dropped Med. Storage Unit. 02846_ Slammed into G-47 Trooper. 02846_ W-25 Informer sends out distress signal. 02847_ Slammed into G-47 Trooper. Map ----- +----------------------------------------------------+ | ?????????????????????????????????????????????????? | | ?????????????????????????????????????????????????? | | ?????????????????????????????????????????????????? | | ?????????????????????????????????????????????????? | | ?????????????????????????????????????????????????? | | ?????????????????????????????????????????????????? | | ?????????????????????????????????????????????????? | | ??????????????????????????###+####???????????????? | | ??????????????????????????? #???????????????? | | ???????????????????????????? #???????????????? | | ????????????????????????????? #??????#######??? | | ?????????????????????????????# #??????# #### | | ?????????????????????????????# #??????# | | ?????????????????????????????# #??????# T | | ?????????????????????????????# ######## | | ??????????????????????????#### % #### | | ???????????????????????? + ######### %!##### | | ??????????????????????????#### #???????# %# " | | ?????????????###################/######### [ # | | ?????????????# [ ! T # ## + | | ??????????????# Y # ## # | | ??????????????# "" g " # ## # | | ??????????????# """ !! =%! # ## # " | | ??????????????# """ !!%ggb" #% ## # " | | ??????????????# !!!%*%= # ## # " | | ??????????????###########@### !%= ## # | | ????????????????????### gYg###/########## # | | ????????????? % g g= %[% w # | | ??????????? ##### | | ??????????w? #???? | | ????????????#######+### ### ##############???? | | ?????????????????w????## ##? ???????????????? | | ???????????????????????# #?? ??????????????? | | ???????????????????????# w #?? ?????????????? | | ???????????????????????# #?? #tu#???????????? | | ???????????????????????# #??#####? ????????????? | | ???????????????????????# #?????????????????????? | | ???????????????????????# #?????????????????????? | | ???????????????????????# ??????????????????????? | | ???????????????????????# ??????????????????????? | | ???????????????????????# ???????Y??????????????? | | ???????????????????????? ??????????????????????? | | ?????????????????????????????????????????????????? | | ?????????????????????????????????????????????????? | | ?????????????????????????????????????????????????? | | ?????????????????????????????????????????????????? | | ?????????????????????????????????????????????????? | | ?????????????????????????????????????????????????? | | ???????????????????????????????????!?????????????? | | ?????????????????????????????????????????????????? | +----------------------------------------------------+ Best States ------------- Heat Dissipation 31 Energy Generation 10 Energy Capacity 250 Matter Stores 300 Matter Capacity 300 Sight Range 16 Terrain Scan Density 10 Armor Coverage 150 Evasion (%) 55 Recoil Reduction 2 Item Schematics ----------------- None Robot Schematics ------------------ None Fabricated ------------ Nothing Alien Tech Used ----------------- None Achievements -------------- None Challenges ------------ None Game ------ Seed WeaponsHeatUnit Manual? 0 Play Time 00:26:10 Cumulative 28.1 hours Start 2025.04.18 @ 19:16:55 End 2025.04.18 @ 19:53:55 Sessions 1 Manual Loads 0 Difficulty Rogue Special Mode None Game No. 91 Rogue 91 Adventurer 0 Explorer 0 Win Type - Total 0 Types 0/0/0/0/0/0/0/0/0 Lore% 9 Gallery% 30 Achievement% 26 Wizard Run 0 Options --------- Layout 0 ASCII 0 Keyboard 0 Movement Numpad Keybinds 0 Fullscreen 2 Font 18/Terminus Map View 76x50 Zoom Use 0% Tactical HUD 1 Map Filters NONE Filters NONE Steam 1 RUN: 72d7966d-0101-4229-aa6f-0fbd1ead0505